fUST/lending_fUST_20251021
["ID","MTS","AMOUNT","RATE_DAILY","PERIOD"]
[391918190,1760985048364,-179.296642,0.00027,7]
[391918191,1760985048375,-231.135208,0.00027,7]
[391918192,1760985048385,-1378.511232,0.00027,7]
[391918193,1760985048395,-179.296642,0.00027,7]
[391918194,1760985048404,-231.135208,0.00027,7]
[391918195,1760985048414,-1378.511232,0.00027,7]
[391918196,1760985048425,-179.296642,0.00027,7]
[391918197,1760985048435,-231.135208,0.00027,7]
[391918198,1760985048445,-1378.511232,0.00027,7]
[391918199,1760985048455,-179.296642,0.00027,7]
[391918200,1760985048466,-231.135208,0.00027,7]
[391918201,1760985048475,-1378.511232,0.00027,7]
[391918202,1760985048485,-179.296642,0.00027,7]
[391918203,1760985048495,-231.135208,0.00027,7]
[391918204,1760985048505,-1378.511229,0.00027,7]
[391918205,1760985048515,-179.296642,0.00027,7]
[391918206,1760985048525,-231.135208,0.00027,7]
[391918207,1760985048534,-179.296642,0.00027,7]
[391918208,1760985048544,-231.135208,0.00027,7]
[391918209,1760985048555,-179.296642,0.00027,7]
[391918210,1760985048565,-231.135208,0.00027,7]
[391918211,1760985048575,-179.296642,0.00027,7]
[391918212,1760985048585,-231.135208,0.00027,7]
[391918213,1760985048596,-179.296642,0.00027,7]
[391918214,1760985048606,-231.135208,0.00027,7]
[391918215,1760985048809,-179.296641,0.00027,7]
[391918216,1760985048833,-231.135208,0.00027,7]
[391918217,1760985048842,-231.135208,0.00027,7]
[391918218,1760985048852,-231.135208,0.00027,7]
[391918219,1760985048861,-231.135208,0.00027,7]
[391918220,1760985048871,-231.135208,0.00027,7]
[391918221,1760985048881,-231.135208,0.00027,7]
[391918222,1760985048890,-231.135204,0.00027,7]
[391918223,1760985048900,-1304.693153,0.00027,7]
[391918224,1760985048909,-1304.693153,0.00027,7]
[391918225,1760985048919,-151.0,0.00027,7]
[391918226,1760985048928,-1304.693153,0.00027,7]
[391918227,1760985048938,-151.0,0.00027,7]
[391918228,1760985048947,-151.0,0.00027,7]
[391918229,1760985048957,-1304.693153,0.00027,7]
[391918230,1760985048966,-151.0,0.00027,7]
[391918231,1760985048975,-151.0,0.00027,7]
[391918232,1760985048984,-1304.693153,0.00027,7]
[391918233,1760985048993,-151.0,0.00027,7]
[391918234,1760985049003,-151.0,0.00027,7]
[391918235,1760985049012,-271.01938514,0.00027,7]
[391918236,1760985050390,-9228.57731988,0.0002579,2]
[391918237,1760985051876,-29863.14314356,0.0002579,2]
[391918238,1760985051887,-157.233478,0.000269,7]
[391918239,1760985051897,-157.233478,0.000269,7]
[391918240,1760985051907,-157.233478,0.00026985,7]
[391918241,1760985051915,-157.233478,0.00026985,7]
[391918242,1760985051924,-1033.67376786,0.00027,7]
[391918243,1760985051933,-159.10792,0.00027,7]
[391918244,1760985051943,-151.0,0.00027,7]
[391918245,1760985051952,-1304.693153,0.00027,7]
[391918246,1760985051962,-151.0,0.00027,7]
[391918247,1760985051971,-1304.693153,0.00027,7]
[391918248,1760985051981,-151.0,0.00027,7]
[391918249,1760985051991,-1304.693153,0.00027,7]
[391918250,1760985052000,-151.0,0.00027,7]
[391918251,1760985052010,-1304.693153,0.00027,7]
[391918252,1760985052019,-151.0,0.00027,7]
[391918253,1760985052029,-1304.693153,0.00027,7]
[391918254,1760985052038,-1304.693153,0.00027,7]
[391918255,1760985052047,-151.0,0.00027,7]
[391918256,1760985052056,-1304.693153,0.00027,7]
[391918257,1760985052065,-151.0,0.00027,7]
[391918258,1760985052074,-1304.693153,0.00027,7]
[391918259,1760985052083,-151.0,0.00027,7]
[391918260,1760985052093,-1304.693153,0.00027,7]
[391918261,1760985052103,-151.0,0.00027,7]
[391918262,1760985052112,-1304.693153,0.00027,7]
[391918263,1760985052121,-151.0,0.00027,7]
[391918264,1760985052132,-1304.693153,0.00027,7]
[391918265,1760985052141,-151.0,0.00027,7]
[391918266,1760985052151,-1304.693153,0.00027,7]
[391918267,1760985052160,-151.0,0.00027,7]
[391918268,1760985052169,-1304.693153,0.00027,7]
[391918269,1760985052179,-169.790875,0.00027,7]
[391918270,1760985052189,-1304.69316,0.00027,7]
[391918271,1760985052198,-195.017758,0.00027,7]
[391918272,1760985052207,-195.017758,0.00027,7]
[391918273,1760985052217,-195.017758,0.00027,7]
[391918274,1760985052226,-195.017758,0.00027,7]
[391918275,1760985052236,-195.017758,0.00027,7]
[391918276,1760985052246,-195.017758,0.00027,7]
[391918277,1760985052255,-195.017758,0.00027,7]
[391918278,1760985052265,-195.017758,0.00027,7]
[391918279,1760985052274,-195.017758,0.00027,7]
[391918280,1760985052283,-195.017758,0.00027,7]
[391918281,1760985052292,-195.017758,0.00027,7]
[391918282,1760985052302,-195.017758,0.00027,7]
[391918283,1760985052311,-151.0,0.00027,7]
[391918284,1760985052320,-195.017758,0.00027,7]
[391918285,1760985052330,-151.0,0.00027,7]
[391918286,1760985052343,-151.0,0.00027,7]
[391918287,1760985052352,-195.017758,0.00027,7]
[391918288,1760985052362,-151.0,0.00027,7]
[391918289,1760985052372,-151.0,0.00027,7]
[391918290,1760985052383,-151.0,0.00027,7]
[391918291,1760985052393,-151.0,0.00027,7]
[391918292,1760985052402,-195.017758,0.00027,7]
[391918293,1760985052413,-151.0,0.00027,7]
[391918294,1760985052423,-151.0,0.00027,7]
[391918295,1760985052433,-195.017758,0.00027,7]
[391918296,1760985052442,-151.0,0.00027,7]
[391918297,1760985052451,-151.0,0.00027,7]
[391918298,1760985052633,-151.0,0.00027,7]
[391918299,1760985052647,-151.0,0.00027,7]
[391918300,1760985052656,-195.017758,0.00027,7]
[391918301,1760985052666,-151.0,0.00027,7]
[391918302,1760985052676,-151.0,0.00027,7]
[391918303,1760985052685,-195.017758,0.00027,7]
[391918304,1760985052695,-151.0,0.00027,7]
[391918305,1760985052707,-151.0,0.00027,7]
[391918306,1760985052717,-195.017758,0.00027,7]
[391918307,1760985052727,-151.0,0.00027,7]
[391918308,1760985052737,-151.0,0.00027,7]
[391918309,1760985052747,-195.017748,0.00027,7]
[391918310,1760985052756,-151.0,0.00027,7]
[391918311,1760985052765,-151.0,0.00027,7]
[391918312,1760985052775,-151.0,0.00027,7]
[391918313,1760985052785,-151.0,0.00027,7]
[391918314,1760985052794,-151.0,0.00027,7]
[391918315,1760985052804,-151.0,0.00027,7]
[391918316,1760985052814,-151.0,0.00027,7]
[391918317,1760985052823,-151.0,0.00027,7]
[391918318,1760985052833,-151.0,0.00027,7]
[391918319,1760985052842,-151.0,0.00027,7]
[391918320,1760985052852,-157.392733,0.00027,7]
[391918321,1760985052862,-166.222641,0.00027,7]
[391918322,1760985052872,-151.0,0.00027,7]
[391918323,1760985052882,-151.0,0.00027,7]
[391918324,1760985052891,-151.0,0.00027,7]
[391918325,1760985052901,-151.0,0.00027,7]
[391918326,1760985052911,-151.0,0.00027,7]
[391918327,1760985052920,-151.0,0.00027,7]
[391918328,1760985052939,-151.0,0.00027,7]
[391918329,1760985052949,-151.0,0.00027,7]
[391918330,1760985052959,-151.0,0.00027,7]
[391918331,1760985052970,-151.0,0.00027,7]
[391918332,1760985052989,-151.0,0.00027,7]
[391918333,1760985052998,-151.0,0.00027,7]
[391918334,1760985053008,-151.0,0.00027,7]
[391918335,1760985053018,-151.0,0.00027,7]
[391918336,1760985053028,-151.0,0.00027,7]
[391918337,1760985053038,-151.0,0.00027,7]
[391918338,1760985053047,-151.0,0.00027,7]
[391918339,1760985053057,-244.405244,0.00027,7]
[391918340,1760985053066,-151.0,0.00027,7]
[391918341,1760985053075,-151.0,0.00027,7]
[391918342,1760985053085,-151.0,0.00027,7]
[391918343,1760985053094,-151.0,0.00027,7]
[391918344,1760985053104,-151.0,0.00027,7]
[391918345,1760985053113,-151.0,0.00027,7]
[391918346,1760985053123,-181.355164,0.00027,7]
[391918347,1760985053132,-233.656997,0.00027,7]
[391918348,1760985053143,-233.656997,0.00027,7]
[391918349,1760985053152,-233.656997,0.00027,7]
[391918350,1760985053162,-158.998876,0.00027,7]
[391918351,1760985053172,-233.656997,0.00027,7]
[391918352,1760985053181,-158.998876,0.00027,7]
[391918353,1760985053191,-158.998876,0.00027,7]
[391918354,1760985053200,-158.998876,0.00027,7]
[391918355,1760985053210,-158.998876,0.00027,7]
[391918356,1760985053220,-158.998876,0.00027,7]
[391918357,1760985053229,-233.656997,0.00027,7]
[391918358,1760985053239,-158.998876,0.00027,7]
[391918359,1760985053249,-158.998876,0.00027,7]
[391918360,1760985053258,-233.656997,0.00027,7]
[391918361,1760985053267,-233.656997,0.00027,7]
[391918362,1760985053276,-151.0,0.00027,7]
[391918363,1760985053286,-158.998876,0.00027,7]
[391918364,1760985053295,-233.656997,0.00027,7]
[391918365,1760985053304,-153.973046,0.00027,7]
[391918366,1760985053314,-158.998876,0.00027,7]
[391918367,1760985053323,-233.656997,0.00027,7]
[391918368,1760985053334,-158.998876,0.00027,7]
[391918369,1760985053347,-233.656997,0.00027,7]
[391918370,1760985053356,-158.998876,0.00027,7]
[391918371,1760985053366,-233.656997,0.00027,7]
[391918372,1760985053376,-158.998876,0.00027,7]
[391918373,1760985053387,-233.656997,0.00027,7]
[391918374,1760985053397,-233.656997,0.00027,7]
[391918375,1760985053406,-158.998876,0.00027,7]
[391918376,1760985053416,-233.656997,0.00027,7]
[391918377,1760985053425,-158.998876,0.00027,7]
[391918378,1760985053435,-233.656997,0.00027,7]
[391918379,1760985053446,-233.656997,0.00027,7]
[391918380,1760985053457,-233.656997,0.00027,7]
[391918381,1760985053467,-158.998876,0.00027,7]
[391918382,1760985053477,-233.656997,0.00027,7]
[391918383,1760985053487,-158.998876,0.00027,7]
[391918384,1760985053496,-233.656997,0.00027,7]
[391918385,1760985053507,-158.998876,0.00027,7]
[391918386,1760985053518,-233.657003,0.00027,7]
[391918387,1760985053527,-158.998876,0.00027,7]
[391918388,1760985053537,-158.998869,0.00027,7]
[391918389,1760985053547,-152.094476,0.00027,7]
[391918390,1760985053557,-627.756314,0.00027,7]
[391918391,1760985053567,-627.756314,0.00027,7]
[391918392,1760985053577,-627.756314,0.00027,7]
[391918393,1760985053587,-627.756314,0.00027,7]
[391918394,1760985053597,-627.756314,0.00027,7]
[391918395,1760985053607,-627.756314,0.00027,7]
[391918396,1760985053617,-627.756314,0.00027,7]
[391918397,1760985053627,-151.0,0.00027,7]
[391918398,1760985053639,-627.756314,0.00027,7]
[391918399,1760985053649,-627.756314,0.00027,7]
[391918400,1760985053659,-151.0,0.00027,7]
[391918401,1760985053667,-151.0,0.00027,7]
[391918402,1760985053677,-627.756314,0.00027,7]
[391918403,1760985053686,-151.0,0.00027,7]
[391918404,1760985053695,-627.756314,0.00027,7]
[391918405,1760985053705,-151.0,0.00027,7]
[391918406,1760985053715,-627.756314,0.00027,7]
[391918407,1760985053725,-151.0,0.00027,7]
[391918408,1760985053734,-627.756314,0.00027,7]
[391918409,1760985053744,-151.0,0.00027,7]
[391918410,1760985053753,-151.0,0.00027,7]
[391918411,1760985053763,-627.756314,0.00027,7]
[391918412,1760985053773,-151.0,0.00027,7]
[391918413,1760985053783,-151.0,0.00027,7]
[391918414,1760985053792,-627.756314,0.00027,7]
[391918415,1760985053802,-151.0,0.00027,7]
[391918416,1760985053813,-627.756314,0.00027,7]
[391918417,1760985053822,-151.0,0.00027,7]
[391918418,1760985053832,-627.756314,0.00027,7]
[391918419,1760985053842,-151.0,0.00027,7]
[391918420,1760985053851,-151.0,0.00027,7]
[391918421,1760985053860,-627.756314,0.00027,7]
[391918422,1760985053869,-151.0,0.00027,7]
[391918423,1760985053879,-627.756314,0.00027,7]
[391918424,1760985053891,-153.329086,0.00027,7]
[391918425,1760985053901,-151.0,0.00027,7]
[391918426,1760985053910,-627.756317,0.00027,7]
[391918427,1760985053920,-151.0,0.00027,7]
[391918428,1760985053930,-151.0,0.00027,7]
[391918429,1760985053939,-151.0,0.00027,7]
[391918430,1760985053949,-2093.909171,0.00027,7]
[391918431,1760985053959,-151.0,0.00027,7]
[391918432,1760985053967,-2093.909171,0.00027,7]
[391918433,1760985053977,-151.0,0.00027,7]
[391918434,1760985053987,-2093.909171,0.00027,7]
[391918435,1760985053996,-151.0,0.00027,7]
[391918436,1760985054006,-2093.909171,0.00027,7]
[391918437,1760985054016,-151.0,0.00027,7]
[391918438,1760985054025,-2093.909171,0.00027,7]
[391918439,1760985054035,-151.0,0.00027,7]
[391918440,1760985054048,-2093.909171,0.00027,7]
[391918441,1760985054057,-151.0,0.00027,7]
[391918442,1760985054067,-2093.909171,0.00027,7]
[391918443,1760985054078,-151.0,0.00027,7]
[391918444,1760985054087,-2093.909171,0.00027,7]
[391918445,1760985054097,-151.0,0.00027,7]
[391918446,1760985054107,-2093.909171,0.00027,7]
[391918447,1760985054117,-151.0,0.00027,7]
[391918448,1760985054128,-1914.09241158,0.00027,7]
[391918449,1760985054151,-179.81675942,0.00027,7]
[391918450,1760985054161,-161.844852,0.00027,7]
[391918451,1760985054171,-151.0,0.00027,7]
[391918452,1760985054181,-1176.60230189,0.00027,7]
[391918453,1760985081563,150.0,0.00020625,2]
[391918454,1760985082010,150.0,0.00021607,2]
[391918455,1760985082440,199.52,0.00022589,2]
[391918456,1760985082941,266.03,0.00023571,2]
[391918457,1760985088990,1000.0,0.00023571,2]
[391918458,1760985090496,744.84740603,0.00023571,2]
[391918459,1760985162836,150.0,0.00020599,2]
[391918460,1760985163364,150.0,0.0002158,2]
[391918461,1760985163706,170.29,0.00022561,2]
[391918462,1760985164158,227.05,0.00023542,2]
[391918463,1760985241745,150.0,0.00020555,2]
[391918464,1760985242197,150.0,0.00021534,2]
[391918465,1760985242635,150.0,0.00022513,2]
[391918466,1760985243078,191.55,0.00023492,2]
[391918467,1760985267518,1628.62219408,0.00024075,2]
[391918468,1760985267542,3371.37780592,0.00024075,2]
[391918469,1760985269723,1001.24081693,0.00024075,2]
[391918470,1760985317937,151.0,0.00024075,2]
[391918471,1760985318950,151.0,0.00024075,2]
[391918472,1760985319550,150.0,0.00020604,2]
[391918473,1760985319927,196.84119169,0.00024075,2]
[391918474,1760985319989,150.0,0.00021585,2]
[391918475,1760985320436,150.0,0.00022566,2]
[391918476,1760985321245,158.89,0.00023548,2]
[391918477,1760985396439,150.0,0.00020629,2]
[391918478,1760985397024,150.0,0.00021611,2]
[391918479,1760985397375,150.0,0.00022593,2]
[391918480,1760985398355,150.0,0.00023575,2]
[391918481,1760985473326,150.0,0.00020549,2]
[391918482,1760985473764,150.0,0.00021527,2]
[391918483,1760985474204,150.0,0.00022506,2]
[391918484,1760985474657,150.0,0.00023484,2]
[391918486,1760985525126,863.37645,0.00013699,2]
[391918487,1760985525346,863.37645,0.00020187,2]
[391918488,1760985545863,150.0,0.00020557,2]
[391918489,1760985546293,150.0,0.00021536,2]
[391918490,1760985546734,150.0,0.00022515,2]
[391918491,1760985547190,150.0,0.00023494,2]
[391918492,1760985616210,150.0,0.00020565,2]
[391918493,1760985617196,150.0,0.00021544,2]
[391918494,1760985618121,150.0,0.00022524,2]
[391918495,1760985618234,150.0,0.00023503,2]
[391918496,1760985813580,150.0,0.00020746,2]
[391918497,1760985814568,150.0,0.00021734,2]
[391918498,1760985815024,92.90728546,0.00022722,2]
[391918499,1760985815048,57.09271454,0.00022722,2]
[391918500,1760985816194,150.0,0.0002371,2]
[391918504,1760985883402,150.0,0.0002069,2]
[391918513,1760985900018,500.0,0.00033701,30]
[391918516,1760985902489,500.0,0.00033701,30]
[391918524,1760985905121,500.0,0.00033701,30]
[391918526,1760985907544,506.47836043,0.00033701,30]
[391918961,1760986145645,4218.49578827,0.00033712,30]
[391919037,1760986231708,-150.0,0.00024553,2]
[391919038,1760986231720,-820.79616517,0.0002479,2]
[391919039,1760986231730,-407.0,0.00024799,2]
[391919040,1760986231740,-746.44146598,0.000248,2]
[391919041,1760986231750,-249.80570104,0.000248,2]
[391919042,1760986231763,-7281.32401937,0.000248,2]
[391919043,1760986231774,-16200.1933223,0.000248,2]
[391919062,1760986237574,-2329.82393291,0.000248,2]
[391919063,1760986237583,-540.45,0.0002489,3]
[391919064,1760986237592,-270.23,0.0002489,3]
[391919065,1760986237601,-810.7,0.0002489,3]
[391919066,1760986237610,-4788.38,0.0002489,10]
[391919067,1760986237619,-3990.32,0.0002489,10]
[391919068,1760986237629,-6908.3288069,0.00024899,2]
[391919069,1760986237638,-500.0,0.00024899,2]
[391919070,1760986237647,-500.0,0.00024899,2]
[391919072,1760986237655,-500.0,0.00024899,2]
[391919073,1760986237664,-500.0,0.00024899,2]
[391919074,1760986237674,-500.0,0.00024899,2]
[391919076,1760986237684,-500.0,0.00024899,2]
[391919079,1760986237693,-500.0,0.00024899,2]
[391919081,1760986237702,-500.0,0.00024899,2]
[391919083,1760986237711,-500.0,0.00024899,2]
[391919085,1760986237720,-500.0,0.00024899,2]
[391919087,1760986237729,-159.91944295,0.00024899,2]
[391919089,1760986237739,-267.3428605,0.00024899,2]
[391919091,1760986237748,-500.0,0.00024899,2]
[391919093,1760986237757,-500.0,0.00024899,2]
[391919095,1760986237766,-556.41584293,0.00024899,2]
[391919097,1760986237775,-449.46850233,0.00024899,2]
[391919099,1760986237785,-508.19401681,0.00024899,2]
[391919101,1760986237794,-500.0,0.00024899,2]
[391919103,1760986237803,-386.45282638,0.00024899,2]
[391919105,1760986237813,-500.0,0.00024899,2]
[391919107,1760986237822,-200.73460177,0.00024899,2]
[391919109,1760986237834,-370000.0,0.000249,2]
[391919111,1760986237846,-402.9601108,0.000249,10]
[391919113,1760986237855,-39563.5798822,0.000249,2]
[391919115,1760986237864,-200.0,0.000249,10]
[391919117,1760986237873,-200.0,0.000249,10]
[391919119,1760986237886,-200.0,0.000249,10]
[391919121,1760986237896,-200.0,0.000249,10]
[391919123,1760986237905,-200.0,0.000249,10]
[391919125,1760986237915,-200.0,0.000249,10]
[391919127,1760986237924,-200.0,0.000249,10]
[391919129,1760986237934,-200.0,0.000249,10]
[391919131,1760986237943,-200.0,0.000249,10]
[391919133,1760986237952,-200.0,0.000249,10]
[391919135,1760986237961,-200.0,0.000249,10]
[391919137,1760986237970,-200.0,0.000249,10]
[391919139,1760986237980,-200.0,0.000249,10]
[391919142,1760986237990,-200.0,0.000249,10]
[391919144,1760986237999,-200.0,0.000249,10]
[391919145,1760986238008,-200.0,0.000249,10]
[391919147,1760986238017,-200.0,0.000249,10]
[391919150,1760986238027,-200.0,0.000249,10]
[391919152,1760986238037,-200.0,0.000249,10]
[391919154,1760986238046,-200.0,0.000249,10]
[391919156,1760986238055,-200.0,0.000249,10]
[391919158,1760986238063,-200.0,0.000249,10]
[391919160,1760986238072,-200.0,0.000249,10]
[391919162,1760986238081,-200.0,0.000249,10]
[391919164,1760986238089,-200.0,0.000249,10]
[391919166,1760986238098,-200.0,0.000249,10]
[391919168,1760986238107,-200.0,0.000249,10]
[391919170,1760986238117,-200.0,0.000249,10]
[391919172,1760986238126,-313.596716,0.000249,10]
[391919174,1760986238136,-643.67247894,0.000249,2]
[391919175,1760986238146,-29786.61988842,0.0002499,2]
[391919177,1760986238156,-172.5,0.00025153,2]
[391919179,1760986238165,-746.44146597,0.00025325,2]
[391919181,1760986238174,-1490.0,0.00025365,2]
[391919183,1760986238184,-300.0,0.00025498,20]
[391919186,1760986238195,-300.0,0.00025498,20]
[391919188,1760986238204,-300.0,0.00025498,20]
[391919190,1760986238214,-300.0,0.00025498,20]
[391919192,1760986238223,-300.0,0.00025498,20]
[391919194,1760986238233,-300.0,0.00025498,20]
[391919203,1760986238487,-300.0,0.00025498,20]
[391919204,1760986238502,-300.0,0.00025498,20]
[391919205,1760986238512,-300.0,0.00025498,20]
[391919206,1760986238521,-300.0,0.00025498,20]
[391919207,1760986238530,-300.0,0.00025498,20]
[391919208,1760986238540,-300.0,0.00025498,20]
[391919209,1760986238549,-300.0,0.00025498,20]
[391919210,1760986238559,-300.0,0.00025498,20]
[391919211,1760986238569,-300.0,0.00025498,20]
[391919212,1760986238579,-600.0,0.00025498,20]
[391919213,1760986238589,-500.0,0.00025498,20]
[391919214,1760986238598,-500.0,0.00025553,20]
[391919215,1760986238608,-500.0,0.00025608,20]
[391919216,1760986238617,-500.0,0.00025662,20]
[391919217,1760986238627,-279.26391331,0.00025717,20]
[391919218,1760986238637,-195.0,0.00025753,2]
[391919219,1760986238647,-746.44146597,0.0002585,2]
[391919220,1760986238657,-26061.14697561,0.0002585,2]
[391919221,1760986238666,-174.0,0.0002589,14]
[391919222,1760986238676,-4945.44748528,0.00025957,2]
[391919223,1760986238686,-1321.0,0.00026057,2]
[391919224,1760986238695,-168.0,0.0002609,2]
[391919225,1760986238704,-1321.0,0.00026119,7]
[391919226,1760986238713,-500.0,0.0002615,2]
[391919227,1760986238722,-378.69317725,0.00026189,2]
[391919228,1760986238730,-1080.9,0.0002626,3]
[391919229,1760986238739,-540.46,0.0002626,3]
[391919230,1760986238748,-392.7178133,0.0002634,2]
[391919231,1760986238757,-392.7178133,0.0002634,2]
[391919232,1760986238767,-392.7178133,0.0002634,2]
[391919233,1760986238777,-392.7178133,0.0002634,2]
[391919234,1760986238787,-264.4154791,0.0002634,2]
[391919235,1760986238797,-217.5,0.00026353,2]
[391919236,1760986238807,-168.0,0.00026362,2]
[391919237,1760986238817,-168.0,0.00026367,2]
[391919238,1760986238827,-746.44146597,0.00026375,2]
[391919239,1760986238839,-160.0,0.000264,2]
[391919240,1760986238849,-820.79616515,0.00026583,2]
[391919241,1760986238859,-151.0,0.000266,15]
[391919242,1760986238869,-863.37645,0.00026676,2]
[391919243,1760986238880,-500.0,0.00026698,2]
[391919244,1760986238890,-153.0,0.00026727,2]
[391919245,1760986238900,-153.0,0.00026727,2]
[391919246,1760986238910,-153.0,0.00026727,2]
[391919247,1760986238920,-151.0,0.000268,14]
[391919248,1760986238930,-2091.58133127,0.0002685,2]
[391919249,1760986238941,-368.7172715,0.00026854,2]
[391919250,1760986238951,-1000.0,0.00026865,2]
[391919251,1760986238961,-1000.0,0.00026865,2]
[391919252,1760986238971,-1000.0,0.00026865,2]
[391919253,1760986238981,-1000.0,0.00026865,2]
[391919254,1760986238991,-1000.0,0.00026865,2]
[391919255,1760986239000,-1000.0,0.00026865,2]
[391919256,1760986239010,-1000.0,0.00026865,2]
[391919257,1760986239019,-1000.0,0.00026865,2]
[391919258,1760986239028,-1000.0,0.00026865,2]
[391919259,1760986239038,-389.7493,0.00026865,2]
[391919260,1760986239048,-168.0,0.00026892,2]
[391919261,1760986239057,-746.44146597,0.000269,2]
[391919262,1760986239067,-4748.28271905,0.000269,2]
[391919366,1760986242831,-432.12,0.0002689,10]
[391919500,1760986246021,-586.36369892,0.0002689,10]
[391919596,1760986343654,870756.46,0.00033712,30]
[391919699,1760986509647,17300.0,0.00033677,30]
[391919700,1760986551101,195.808452,0.00023794,2]
[391919803,1760986673472,500.0,0.00033677,30]
[391919805,1760986738350,972.5264939,0.00033671,120]
[391919806,1760986810270,7700.0,0.00033671,30]
[391919822,1760986933953,417.15472785,0.00024075,2]
[391919888,1760987018597,158.4784229,0.00023776,2]
[391919949,1760987392252,538.116555,0.00023761,2]
[391919977,1760987436454,-150.05747681,0.000241,2]
[391919979,1760987436465,-150.0,0.00024698,2]
[391919981,1760987436474,-200.0,0.00024699,2]
[391919983,1760987436484,-1381.74252319,0.000247,2]
[391919985,1760987436495,-3969.30000001,0.000247,2]
[391919988,1760987436506,-1667.97743761,0.000247,2]
[391920107,1760987437768,-1668.02903106,0.000247,2]
[391920108,1760987437779,-160.0,0.00024711,2]
[391920109,1760987437789,-166.1548663,0.00024732,2]
[391920110,1760987437798,-270.0,0.00024789,2]
[391920111,1760987437808,-300.0,0.00024789,2]
[391920112,1760987437817,-300.0,0.00024789,2]
[391920114,1760987437827,-1200.0,0.00024789,2]
[391920116,1760987437836,-772.98,0.0002479,3]
[391920118,1760987437846,-402.9601108,0.0002479,10]
[391920119,1760987437856,-339.99878449,0.00024799,2]
[391920120,1760987437866,-516.22169671,0.00024799,2]
[391920121,1760987437877,-365.08519773,0.00024799,2]
[391920122,1760987437886,-325.21732964,0.00024799,2]
[391920123,1760987437896,-1802.44749663,0.000248,2]
[391920249,1760987443119,-6323.53,0.0002479,10]
[391920250,1760987443129,-11803.9431615,0.000248,2]
[391920262,1760987445969,-295.13886484,0.000248,2]
[391920263,1760987445982,-692.25170984,0.000248,2]
[391920264,1760987446126,-7679.99999978,0.000248,2]
[391920268,1760987646703,150.0,0.0002055,2]
[391920269,1760987647142,150.0,0.00021528,2]
[391920271,1760987756711,1700.0,0.00033672,59]
[391920272,1760987776221,588.54243341,0.00022952,5]
[391920273,1760987906608,168.723552,0.0001187,2]
[391920274,1760987943162,601.364448,0.00030137,120]
[391920275,1760987995855,-199.66119806,0.00024018,4]
[391920276,1760987998299,-267.97711593,0.00024018,4]
[391920277,1760988001362,-243.57727224,0.00024018,4]
[391920278,1760988086350,-122.83331377,0.00024018,4]